bitfinex/quotes_BTCUSD_20250922
["timestamp","ask_amount","ask_price","bid_price","bid_amount"]
[1758523482012,0.00202,113120.0,113110.0,0.31092263]
[1758523482231,0.00299,113130.0,113120.0,0.17680339]
[1758523482462,0.50792,113140.0,113120.0,0.20623339]
[1758523482664,1.11489785,113140.0,113130.0,0.22194653]
[1758523482996,1.11489785,113140.0,113130.0,0.20621776]
[1758523483173,1.11489785,113140.0,113130.0,0.02943]
[1758523483174,1.41899785,113140.0,113130.0,0.02943]
[1758523483309,1.41899785,113140.0,113130.0,0.04710877]
[1758523483530,1.41899785,113140.0,113130.0,0.22389653]
[1758523483764,1.84920356,113140.0,113130.0,0.20621776]
[1758523484008,0.98677214,113140.0,113130.0,0.20300776]
[1758523484318,0.50792,113140.0,113130.0,0.20821776]
[1758523484517,1.24016571,113140.0,113130.0,0.20821776]
[1758523484673,0.80996,113140.0,113130.0,0.29348743]
[1758523485058,1.24016571,113140.0,113130.0,0.29348743]
[1758523485643,1.24016571,113140.0,113130.0,0.29448743]
[1758523485997,0.85776571,113140.0,113130.0,0.29448743]
[1758523486774,0.42756,113140.0,113130.0,0.29448743]
[1758523487309,0.03,113140.0,113130.0,0.29448743]
[1758523487473,0.33196,113140.0,113130.0,0.32106199]
[1758523488250,0.33196,113140.0,113130.0,0.32006199]
[1758523488459,0.03,113140.0,113130.0,0.32006199]
[1758523488661,0.33196,113140.0,113130.0,0.32206199]
[1758523489150,0.33196,113140.0,113130.0,0.32006199]
[1758523489413,0.33398,113140.0,113130.0,0.11384423]
[1758523489628,1.80435927,113140.0,113130.0,0.03157456]
[1758523490066,1.37415356,113140.0,113130.0,0.03957456]
[1758523490288,1.19738142,113140.0,113130.0,0.18178776]
[1758523490511,0.33394,113140.0,113130.0,0.18373776]
[1758523490752,1.19435142,113140.0,113130.0,0.21800776]
[1758523491167,0.46020571,113140.0,113130.0,0.29148743]
[1758523491380,0.76208571,113140.0,113130.0,0.29448743]
[1758523491689,1.19229142,113140.0,113130.0,0.29448743]
[1758523491897,1.19229142,113140.0,113130.0,0.29748743]
[1758523492506,1.19229142,113140.0,113130.0,0.32406396]
[1758523492831,1.19229142,113140.0,113130.0,0.32106396]
[1758523493049,1.19229142,113140.0,113130.0,0.32506396]
[1758523493337,0.03,113140.0,113130.0,0.32506396]
[1758523493559,0.03,113140.0,113130.0,0.32106396]
[1758523493798,0.02538188,113140.0,113130.0,0.32906396]
[1758523494020,0.02538188,113140.0,113130.0,0.66906396]
[1758523494865,0.02538188,113140.0,113130.0,0.4922762]
[1758523496587,0.20215402,113140.0,113130.0,0.4922762]
[1758523496977,0.63235973,113140.0,113130.0,0.4922762]
[1758523497336,0.63197785,113140.0,113130.0,0.4922762]
[1758523497541,1.06413356,113140.0,113130.0,0.4922762]
[1758523497756,0.20177214,113140.0,113130.0,0.4922762]
[1758523498155,0.63197785,113140.0,113130.0,0.4922762]
[1758523499618,0.45520571,113140.0,113130.0,0.4922762]
[1758523499976,0.76184571,113140.0,113130.0,0.4922762]
[1758523500188,0.76176571,113140.0,113130.0,0.4922762]
[1758523500532,0.45520571,113140.0,113130.0,0.66906396]
[1758523500682,0.76176571,113140.0,113130.0,0.66906396]
[1758523500896,0.33156,113140.0,113130.0,0.66906396]
[1758523501100,0.76407571,113140.0,113130.0,0.4680062]
[1758523501286,1.19428142,113140.0,113130.0,0.4647962]
[1758523501490,1.37417356,113140.0,113130.0,0.011]
[1758523501844,0.33683,113140.0,113130.0,0.011]
[1758523502053,1.19724142,113140.0,113130.0,0.011]
[1758523502467,1.37401356,113140.0,113130.0,0.011]
[1758523502817,1.19724142,113140.0,113130.0,0.18778776]
[1758523503815,1.37401356,113140.0,113130.0,0.011]
[1758523504014,1.80421927,113140.0,113130.0,0.011]
[1758523504993,1.81317501,113140.0,113130.0,0.011]
[1758523505150,1.50641501,113140.0,113130.0,0.011]
[1758523505479,1.81245501,113140.0,113130.0,0.003]
[1758523505696,0.17679347,113130.0,113110.0,0.2475302]
[1758523505907,1.17164142,113120.0,113110.0,0.33279987]
[1758523506115,1.17164142,113120.0,113110.0,0.2475302]
[1758523507254,0.31123,113120.0,113110.0,0.2525302]
[1758523507456,1.77865052,113120.0,113110.0,0.07571241]
[1758523507693,2.50097052,113120.0,113110.0,0.005]
[1758523508097,2.19481052,113120.0,113110.0,0.016]
[1758523508344,0.90419339,113120.0,113110.0,0.016]
[1758523508531,2.50377052,113120.0,113110.0,0.011]
[1758523509075,2.50389052,113120.0,113110.0,0.017]
[1758523509404,2.19481052,113120.0,113110.0,0.015]
[1758523509628,2.50389052,113120.0,113110.0,0.015]
[1758523510030,0.34,113110.0,113100.0,0.1768326]
[1758523510215,1.38230044,113110.0,113090.0,0.17684915]
[1758523510427,1.17221142,113100.0,113090.0,0.26225953]
[1758523510623,1.17221142,113100.0,113090.0,0.17698986]
[1758523510851,1.17416142,113100.0,113090.0,0.17698986]
[1758523511525,1.18312916,113100.0,113090.0,0.18498986]
[1758523511735,1.17416142,113100.0,113090.0,0.18498986]
[1758523512801,1.17416142,113100.0,113090.0,0.184991]
[1758523513009,1.35099607,113100.0,113090.0,0.00814071]
[1758523513427,1.35099607,113100.0,113090.0,0.01114071]
[1758523514214,1.35099607,113100.0,113090.0,0.187991]
[1758523515171,0.86548142,113100.0,113090.0,0.187991]
[1758523515378,1.17308142,113100.0,113090.0,0.187991]
[1758523515867,0.86548142,113100.0,113090.0,0.187991]
[1758523516094,1.17304142,113100.0,113090.0,0.187991]
[1758523516639,0.86548142,113100.0,113090.0,0.187991]
[1758523516841,1.17298142,113100.0,113090.0,0.187991]
[1758523517447,0.86249142,113100.0,113090.0,0.190081]
[1758523517773,1.16973142,113100.0,113090.0,0.213831]
[1758523518545,0.86249142,113100.0,113090.0,0.187991]
[1758523518782,1.17270142,113100.0,113090.0,0.187991]
[1758523519432,0.31229,113100.0,113090.0,0.187991]
[1758523519562,1.17270142,113100.0,113090.0,0.187991]
[1758523519907,1.34953607,113100.0,113090.0,0.187991]
[1758523520109,1.17270142,113100.0,113090.0,0.187991]
[1758523520554,0.31229,113100.0,113090.0,0.187991]
[1758523520756,1.16965142,113100.0,113090.0,0.187991]
[1758523520994,1.17270142,113100.0,113090.0,0.187991]
[1758523522228,0.86249142,113100.0,113090.0,0.213831]
[1758523522497,1.16881142,113100.0,113090.0,0.213831]
[1758523523206,1.16881142,113100.0,113090.0,0.211741]
[1758523523427,1.17186142,113100.0,113090.0,0.211741]
[1758523523615,0.31145,113100.0,113090.0,0.187991]
[1758523523818,0.86554142,113100.0,113090.0,0.211741]
[1758523524031,0.30804,113100.0,113090.0,0.213831]
[1758523524332,1.16845142,113100.0,113090.0,0.213831]
[1758523524626,0.86249142,113100.0,113090.0,0.213831]
[1758523524826,1.16805142,113100.0,113090.0,0.213831]
[1758523525045,0.86249142,113100.0,113090.0,0.213831]
[1758523525250,1.16797142,113100.0,113090.0,0.216821]
[1758523525420,0.86249142,113100.0,113090.0,0.216821]
[1758523525621,1.16777142,113100.0,113090.0,0.216821]
[1758523526374,1.16569142,113100.0,113090.0,0.216821]
[1758523526856,1.16777142,113100.0,113090.0,0.213831]
[1758523527421,0.34,113110.0,113100.0,0.17683465]
[1758523527607,0.6448,113110.0,113100.0,0.20690465]
[1758523527814,1.07500571,113110.0,113100.0,0.20690465]
[1758523528077,1.07496571,113110.0,113100.0,0.20690465]
[1758523528485,0.64476,113110.0,113100.0,0.20690465]
[1758523528692,0.38232,113120.0,113110.0,0.17681902]
[1758523528864,1.11720571,113120.0,113110.0,0.20688902]
[1758523529158,1.54741142,113120.0,113110.0,0.21588462]
[1758523529811,1.15252571,113120.0,113110.0,0.21588462]
[1758523530011,1.88685999,113120.0,113110.0,0.21588462]
[1758523530727,1.88685999,113120.0,113110.0,0.20788902]
[1758523530728,1.88898999,113120.0,113110.0,0.20788902]
[1758523530939,1.88898999,113120.0,113110.0,0.271239]
[1758523532032,0.09556,113130.0,113120.0,0.17680339]
[1758523532210,0.82980571,113130.0,113120.0,0.29214306]
[1758523532409,0.3996,113130.0,113120.0,0.29214306]
[1758523533032,0.97315488,113130.0,113120.0,0.29214306]
[1758523533681,0.09656,113130.0,113120.0,0.29214306]
[1758523533914,0.40032,113130.0,113120.0,0.29214306]
[1758523534442,0.30776,113130.0,113120.0,0.29214306]
[1758523534646,0.30476,113130.0,113120.0,0.29214306]
[1758523534851,0.30476,113130.0,113120.0,0.29314306]
[1758523535222,0.30376,113130.0,113120.0,0.29314306]
[1758523536433,0.025,113140.0,113130.0,0.17678776]
[1758523536636,0.32844,113140.0,113130.0,0.29212743]
[1758523537155,0.025,113140.0,113130.0,0.29212743]
[1758523537364,0.32824,113140.0,113130.0,0.29212743]
[1758523537513,0.33220685,113140.0,113130.0,0.29212743]
[1758523537936,0.32820685,113140.0,113130.0,0.29212743]
[1758523538339,0.32820685,113140.0,113130.0,0.29512743]
[1758523538543,0.32920685,113140.0,113130.0,0.29512743]
[1758523538746,0.90489173,113140.0,113130.0,0.29207743]
[1758523538948,0.90790173,113140.0,113130.0,0.28999743]
[1758523539217,0.60474173,113140.0,113130.0,0.28999743]
[1758523539371,0.90353173,113140.0,113130.0,0.29207743]
[1758523539569,0.90353173,113140.0,113130.0,0.28999743]
[1758523539943,0.90654173,113140.0,113130.0,0.29199743]
[1758523540149,0.90654173,113140.0,113130.0,0.26705743]
[1758523540854,1.08331387,113140.0,113130.0,0.005]
[1758523541318,0.90654173,113140.0,113130.0,0.18178776]
[1758523541530,0.60073173,113140.0,113130.0,0.21185776]
[1758523541715,1.08066387,113140.0,113130.0,0.20880776]
[1758523541978,0.90690173,113140.0,113130.0,0.18178776]
[1758523542302,1.08367387,113140.0,113130.0,0.18178776]
[1758523542751,1.08355387,113140.0,113130.0,0.18178776]
[1758523542947,1.08355387,113140.0,113130.0,0.005]
[1758523543463,1.08355387,113140.0,113130.0,0.18178776]
[1758523544211,1.08355387,113140.0,113130.0,0.005]
[1758523546251,1.08355387,113140.0,113130.0,0.18178776]
[1758523546430,0.50999899,113140.0,113130.0,0.18178776]
[1758523546573,0.33278685,113140.0,113130.0,0.18178776]
[1758523546924,0.60374173,113140.0,113130.0,0.18178776]
[1758523547126,0.90622173,113140.0,113130.0,0.18178776]
[1758523547337,1.08299387,113140.0,113130.0,0.18178776]
[1758523547581,0.90622173,113140.0,113130.0,0.18178776]
[1758523548052,0.60374173,113140.0,113130.0,0.18178776]
[1758523548268,0.60374173,113140.0,113130.0,0.21185776]
[1758523548269,0.02504685,113140.0,113130.0,0.21185776]
[1758523548468,0.32752685,113140.0,113130.0,0.21185776]
[1758523548678,0.90108173,113140.0,113130.0,0.21185776]
[1758523549557,0.32752685,113140.0,113130.0,0.21185776]
[1758523549739,0.90108173,113140.0,113130.0,0.21185776]
[1758523550670,0.90321173,113140.0,113130.0,0.21185776]
[1758523550843,0.90321173,113140.0,113130.0,0.20880776]
[1758523551207,0.32965685,113140.0,113130.0,0.20880776]
[1758523551407,0.90321173,113140.0,113130.0,0.20880776]
[1758523551745,0.32965685,113140.0,113130.0,0.21185776]
[1758523551970,0.90321173,113140.0,113130.0,0.21185776]
[1758523553642,0.90108173,113140.0,113130.0,0.21185776]
[1758523553970,0.90321173,113140.0,113130.0,0.21185776]
[1758523554180,0.90622173,113140.0,113130.0,0.18178776]
[1758523554386,1.08299387,113140.0,113130.0,0.18178776]
[1758523555733,1.08299387,113140.0,113130.0,0.005]
[1758523557428,0.50943899,113140.0,113130.0,0.005]
[1758523557630,1.08299387,113140.0,113130.0,0.005]
[1758523558510,0.78051387,113140.0,113130.0,0.005]
[1758523558764,1.08299387,113140.0,113130.0,0.005]
[1758523561303,1.08295387,113140.0,113130.0,0.005]
[1758523561683,0.78051387,113140.0,113130.0,0.005]
[1758523561897,1.08295387,113140.0,113130.0,0.005]
[1758523562096,0.78051387,113140.0,113130.0,0.005]
[1758523562308,1.08295387,113140.0,113130.0,0.005]
[1758523562520,1.80949032,113140.0,113130.0,0.005]
[1758523562729,2.11193032,113140.0,113130.0,0.005]
[1758523562939,1.53837544,113140.0,113130.0,0.005]
[1758523563618,1.53837544,113140.0,113130.0,0.002]
[1758523563868,0.17680339,113120.0,113110.0,0.243219]
[1758523564076,1.05478827,113120.0,113110.0,0.268089]
[1758523564479,1.05797827,113120.0,113110.0,0.09126998]
[1758523564991,1.05797827,113120.0,113110.0,0.06639998]
[1758523565245,1.63153315,113120.0,113110.0,0.06639998]
[1758523565456,1.63153315,113120.0,113110.0,0.003]
[1758523565644,1.05797827,113120.0,113110.0,0.003]
[1758523565965,0.75553827,113120.0,113110.0,0.17981902]
[1758523566164,1.05797827,113120.0,113110.0,0.17981902]
[1758523566374,1.05797827,113120.0,113110.0,0.01]
[1758523566583,1.05797827,113120.0,113110.0,0.03487]
[1758523567200,0.48123339,113120.0,113110.0,0.21376902]
[1758523567395,0.75234827,113120.0,113110.0,0.03695]
[1758523567718,1.05478827,113120.0,113110.0,0.03487]
[1758523567959,0.18198339,113120.0,113110.0,0.01]
[1758523568127,1.63149315,113120.0,113110.0,0.01]
[1758523568465,1.63149315,113120.0,113110.0,0.07645308]
[1758523568665,1.63149315,113120.0,113110.0,0.01]
[1758523568879,1.97149315,113120.0,113110.0,0.01]
[1758523569989,1.97149315,113120.0,113110.0,0.007]
[1758523570266,0.17681902,113110.0,113100.0,0.0046189]
[1758523570502,0.7503739,113110.0,113100.0,0.0046189]
[1758523570679,0.17681902,113110.0,113100.0,0.20840355]
[1758523570880,0.87595488,113110.0,113100.0,0.21142355]
[1758523571038,1.0527739,113110.0,113100.0,0.21142355]
[1758523571435,0.48120902,113110.0,113100.0,0.21442355]
[1758523571640,1.0547639,113110.0,113100.0,0.21442355]
[1758523571876,1.0547639,113110.0,113100.0,0.0345689]
[1758523572314,1.0547639,113110.0,113100.0,0.21140355]
[1758523572490,0.7523639,113110.0,113100.0,0.21140355]
[1758523572728,1.0547639,113110.0,113100.0,0.21840355]
[1758523573704,0.57554488,113110.0,113100.0,0.21840355]
[1758523573905,1.0547639,113110.0,113100.0,0.21840355]
[1758523574229,0.57554488,113110.0,113100.0,0.21840355]
[1758523574444,0.87794488,113110.0,113100.0,0.22153355]
[1758523575359,0.57554488,113110.0,113100.0,0.22153355]
[1758523575560,0.57355488,113110.0,113100.0,0.22153355]
[1758523575711,0.87595488,113110.0,113100.0,0.22153355]
[1758523576323,0.3024,113110.0,113100.0,0.22153355]
[1758523576711,0.87595488,113110.0,113100.0,0.22153355]
[1758523577463,0.87797488,113110.0,113100.0,0.22153355]
[1758523577821,1.57154827,113120.0,113110.0,0.17681902]
[1758523578037,1.87596827,113120.0,113110.0,0.17681902]
[1758523578599,1.69597488,113120.0,113110.0,0.17895902]
[1758523578799,1.69391488,113120.0,113110.0,0.20580902]
[1758523579048,1.35391488,113120.0,113110.0,0.20580902]
[1758523579239,1.35391488,113120.0,113110.0,0.20880902]
[1758523580321,1.35391488,113120.0,113110.0,0.21080902]
[1758523580851,0.78036,113120.0,113110.0,0.21080902]
[1758523581059,1.35391488,113120.0,113110.0,0.21080902]
[1758523582114,1.35391488,113120.0,113110.0,0.27678417]
[1758523582322,1.05155488,113120.0,113110.0,0.27678417]
[1758523582529,1.35391488,113120.0,113110.0,0.27678417]
[1758523582971,1.25831488,113120.0,113110.0,0.27678417]
[1758523584356,0.68476,113120.0,113110.0,0.36205384]
[1758523584558,0.3824,113120.0,113110.0,0.36205384]
[1758523584807,1.25827488,113120.0,113110.0,0.36205384]
[1758523585803,0.95595488,113120.0,113110.0,0.36205384]
[1758523586009,1.25827488,113120.0,113110.0,0.36205384]
[1758523586606,0.68472,113120.0,113110.0,0.36205384]
[1758523586984,1.25827488,113120.0,113110.0,0.36205384]
[1758523587733,1.04057074,113140.0,113120.0,0.17679211]
[1758523587958,0.87783488,113130.0,113120.0,0.20076211]
[1758523588529,0.88098488,113130.0,113120.0,0.20076211]
[1758523588716,0.30743,113130.0,113120.0,0.17679211]
[1758523588919,0.88098488,113130.0,113120.0,0.17679211]
[1758523589130,1.05777264,113130.0,113120.0,0.17680339]
[1758523591769,0.30743,113130.0,113120.0,0.17680339]
[1758523591978,0.88098488,113130.0,113120.0,0.17680339]
[1758523592729,0.7377065,113130.0,113120.0,0.17680339]
[1758523593094,0.4354265,113130.0,113120.0,0.17680339]
[1758523593295,0.7344765,113130.0,113120.0,0.20278339]
[1758523593719,0.7376265,113130.0,113120.0,0.20278339]
[1758523594276,0.7376265,113130.0,113120.0,0.20077339]
[1758523594701,0.91441426,113130.0,113120.0,0.17680339]
[1758523595680,0.48413776,113130.0,113120.0,0.17680339]
[1758523595851,0.30731,113130.0,113120.0,0.17680339]
[1758523596050,0.7375865,113130.0,113120.0,0.17680339]
[1758523596259,0.002,113130.0,113120.0,0.17881339]
[1758523596411,0.4322765,113130.0,113120.0,0.20278339]
[1758523596638,1.2820954,113140.0,113130.0,0.17678776]
[1758523596838,0.50304685,113140.0,113130.0,0.20586776]
[1758523597045,0.93332335,113140.0,113130.0,0.20586776]
[1758523597473,1.23544335,113140.0,113130.0,0.20586776]
[1758523597673,1.66571985,113140.0,113130.0,0.20586776]
[1758523597958,1.84864199,113140.0,113130.0,0.20075776]
[1758523598162,1.84864199,113140.0,113130.0,0.17678776]
[1758523598314,1.84764199,113140.0,113130.0,0.17678776]
[1758523598728,1.84764199,113140.0,113130.0,0.17878776]
[1758523598956,1.85164199,113140.0,113130.0,0.17878776]
[1758523599164,1.67486985,113140.0,113130.0,0.17878776]
[1758523599375,1.67086985,113140.0,113130.0,0.20275776]
[1758523599715,1.36559985,113140.0,113130.0,0.20776776]
[1758523599901,1.66771985,113140.0,113130.0,0.20776776]
[1758523600610,1.84764199,113140.0,113130.0,0.20575776]
[1758523601897,1.84764199,113140.0,113130.0,0.18178776]
[1758523602099,1.84764199,113140.0,113130.0,0.005]
[1758523602520,0.98708899,113140.0,113130.0,0.005]
[1758523602913,1.84764199,113140.0,113130.0,0.18178776]
[1758523603124,1.84764199,113140.0,113130.0,0.005]
[1758523603550,2.27791849,113140.0,113130.0,0.00504]
[1758523604173,1.84764199,113140.0,113130.0,0.00504]
[1758523604316,1.84764199,113140.0,113130.0,0.00304]
[1758523605415,2.61791849,113140.0,113130.0,0.00304]
[1758523605631,2.61791849,113140.0,113130.0,4e-05]
[1758523605840,2.70318816,113140.0,113130.0,4e-05]
[1758523606054,2.73334006,113140.0,113130.0,4e-05]
[1758523606237,2.43122006,113140.0,113130.0,4e-05]
[1758523606371,2.73322006,113140.0,113130.0,4e-05]
[1758523608059,2.43122006,113140.0,113130.0,4e-05]
[1758523608274,2.73318006,113140.0,113130.0,4e-05]
[1758523608659,2.43122006,113140.0,113130.0,4e-05]
[1758523608851,2.73318006,113140.0,113130.0,4e-05]
[1758523610407,2.43122006,113140.0,113130.0,4e-05]
[1758523610653,2.73318006,113140.0,113130.0,4e-05]
[1758523611755,2.73314006,113140.0,113130.0,4e-05]
[1758523614018,2.43122006,113140.0,113130.0,4e-05]
[1758523614227,2.73310006,113140.0,113130.0,4e-05]
[1758523617943,2.43122006,113140.0,113130.0,4e-05]
[1758523618140,2.73302006,113140.0,113130.0,4e-05]
[1758523618584,1.14039056,113140.0,113130.0,4e-05]
[1758523618760,2.73302006,113140.0,113130.0,4e-05]
[1758523618979,2.43122006,113140.0,113130.0,4e-05]
[1758523619429,2.73298006,113140.0,113130.0,4e-05]
[1758523622819,2.73292006,113140.0,113130.0,4e-05]
[1758523628913,2.43120006,113140.0,113130.0,4e-05]
[1758523629102,2.73276006,113140.0,113130.0,4e-05]
[1758523631585,2.43120006,113140.0,113130.0,4e-05]
[1758523631740,2.73272006,113140.0,113130.0,4e-05]
[1758523632546,0.84304685,113140.0,113130.0,0.002]
[1758523632748,0.84304685,113140.0,113130.0,0.20663776]
[1758523632749,1.14452685,113140.0,113130.0,0.20663776]
[1758523632956,0.50304685,113140.0,113130.0,0.20663776]
[1758523633177,1.66503985,113140.0,113130.0,0.20663776]
[1758523633823,0.80448685,113140.0,113130.0,0.20663776]
[1758523634026,1.66503985,113140.0,113130.0,0.20863776]
[1758523634236,1.66503985,113140.0,113130.0,0.21163776]
[1758523634458,1.54037199,113140.0,113130.0,0.21163776]
[1758523634593,1.66503985,113140.0,113130.0,0.21163776]
[1758523634794,1.84181199,113140.0,113130.0,0.21163776]
[1758523635023,0.80448685,113140.0,113130.0,0.21163776]
[1758523635219,1.66503985,113140.0,113130.0,0.21163776]
[1758523636034,0.80448685,113140.0,113130.0,0.21163776]
[1758523636236,1.66503985,113140.0,113130.0,0.21163776]
[1758523637004,2.27418849,113140.0,113130.0,0.03177]
[1758523637212,1.84698199,113140.0,113130.0,0.00504]
[1758523637449,1.84181199,113140.0,113130.0,0.20855776]
[1758523637668,1.84181199,113140.0,113130.0,0.03485]
[1758523637850,1.84391199,113140.0,113130.0,0.03485]
[1758523638249,0.98335899,113140.0,113130.0,0.03177]
[1758523638415,1.84698199,113140.0,113130.0,0.03177]
[1758523638623,1.84698199,113140.0,113130.0,0.007]
[1758523639301,0.98335899,113140.0,113130.0,0.007]
[1758523639502,2.27725849,113140.0,113130.0,0.00504]
[1758523640960,2.27725849,113140.0,113130.0,0.00204]
[1758523641170,2.27725849,113140.0,113130.0,4e-05]
[1758523643339,2.61725849,113140.0,113130.0,4e-05]
[1758523643860,2.73268006,113140.0,113130.0,4e-05]
[1758523645000,2.73236006,113140.0,113130.0,4e-05]
[1758523646086,2.43124006,113140.0,113130.0,4e-05]
[1758523646293,1.88247199,113140.0,113130.0,0.002]
[1758523646493,2.18145199,113140.0,113130.0,0.02985]
[1758523646885,1.70359985,113140.0,113130.0,0.20663776]
[1758523647167,2.18145199,113140.0,113130.0,0.20663776]
[1758523648012,1.88037199,113140.0,113130.0,0.20663776]
[1758523648188,1.66463985,113140.0,113130.0,0.20663776]
[1758523648551,1.36359985,113140.0,113130.0,0.20663776]
[1758523648828,0.93332335,113140.0,113130.0,0.20663776]
[1758523649031,1.23432335,113140.0,113130.0,0.20663776]
[1758523649232,0.80404685,113140.0,113130.0,0.20663776]
[1758523649443,1.23432335,113140.0,113130.0,0.20663776]
[1758523649749,1.23432335,113140.0,113130.0,0.20863776]
[1758523649963,0.12064685,113140.0,113130.0,0.29390743]
[1758523650167,0.42164685,113140.0,113130.0,0.29390743]
[1758523650540,0.85192335,113140.0,113130.0,0.29690743]
[1758523650903,0.42164685,113140.0,113130.0,0.29690743]
[1758523651270,0.32604685,113140.0,113130.0,0.29690743]
[1758523652069,0.02504685,113140.0,113130.0,0.29690743]
[1758523652307,0.32596685,113140.0,113130.0,0.29690743]
[1758523652842,0.32592685,113140.0,113130.0,0.29690743]
[1758523653057,0.02504685,113140.0,113130.0,0.29690743]
[1758523653258,0.32592685,113140.0,113130.0,0.29690743]
[1758523654913,0.32592685,113140.0,113130.0,0.30582842]
[1758523660451,0.32564685,113140.0,113130.0,0.30582842]
[1758523660653,0.02504685,113140.0,113130.0,0.30582842]
[1758523660838,0.32564685,113140.0,113130.0,0.30582842]
[1758523661770,0.02504685,113140.0,113130.0,0.30582842]
[1758523662625,0.02504685,113140.0,113130.0,0.33240097]
[1758523674070,0.02700685,113140.0,113130.0,0.27797842]
[1758523674520,0.02700685,113140.0,113130.0,0.30095842]
[1758523674716,0.02700685,113140.0,113130.0,0.27797842]
[1758523674919,0.03022685,113140.0,113130.0,0.27601842]
[1758523675266,0.02504685,113140.0,113130.0,0.30425842]
[1758523678986,0.03005685,113140.0,113130.0,0.27601842]
[1758523679394,0.02710685,113140.0,113130.0,0.30281842]
[1758523680385,0.02504685,113140.0,113130.0,0.30604842]
[1758523683581,0.02504685,113140.0,113130.0,0.33262285]
[1758523689007,0.02504685,113140.0,113130.0,0.67262285]
[1758523696875,0.02504685,113140.0,113130.0,0.66962285]
[1758523697106,0.02504685,113140.0,113130.0,0.67762285]
[1758523697331,0.02504685,113140.0,113130.0,0.67562285]
[1758523697622,0.02504685,113140.0,113130.0,0.67162285]
[1758523697848,0.02504685,113140.0,113130.0,0.68362285]
[1758523697981,0.02504685,113140.0,113130.0,0.67962285]
[1758523698450,0.02504685,113140.0,113130.0,0.68562285]
[1758523700462,0.003,113150.0,113140.0,0.51677214]
[1758523700701,0.0304,113180.0,113170.0,0.17672528]
[1758523700702,0.10464631,113180.0,113170.0,0.17672528]
[1758523700910,0.10682319,113180.0,113170.0,0.26199495]
[1758523701126,0.10682319,113180.0,113170.0,0.28856174]
[1758523701599,0.03555688,113180.0,113170.0,0.28856174]
[1758523702096,0.03555688,113180.0,113170.0,0.29727532]
[1758523702335,0.60892356,113180.0,113170.0,0.11183646]
[1758523702571,0.60892356,113180.0,113170.0,0.20329207]
[1758523702810,0.78563322,113180.0,113160.0,0.17672749]
[1758523703036,0.20928654,113180.0,113170.0,0.17672528]
[1758523703264,0.21128654,113180.0,113160.0,0.28856649]
[1758523703496,0.21128654,113180.0,113170.0,0.17672528]
[1758523703732,0.21128654,113180.0,113160.0,0.28856649]
[1758523703981,0.299,113170.0,113160.0,0.20329682]
[1758523704220,1.05420196,113170.0,113150.0,0.18550113]
[1758523704450,1.05122196,113170.0,113150.0,0.28857213]
[1758523704703,0.57634668,113160.0,113150.0,0.20330246]
[1758523704917,0.57634668,113160.0,113150.0,0.17673066]
[1758523705092,0.57847668,113160.0,113150.0,0.17673066]
[1758523705306,0.57847668,113160.0,113150.0,0.24282183]
[1758523707121,0.57847668,113160.0,113150.0,0.24382183]
[1758523707420,1.32858425,113160.0,113150.0,0.24284768]
[1758523707635,1.32858425,113160.0,113150.0,0.18475651]
[1758523707878,1.33761338,113160.0,113150.0,0.008]
[1758523708070,1.33761338,113160.0,113150.0,0.18475651]
[1758523708272,1.33761338,113160.0,113150.0,0.008]
[1758523708484,1.33761338,113160.0,113150.0,0.18475651]
[1758523708947,1.16087249,113160.0,113150.0,0.18475651]
[1758523709749,1.32858425,113160.0,113150.0,0.18475651]
[1758523710130,0.00511,113160.0,113150.0,0.18475651]
[1758523710327,0.30395,113160.0,113150.0,0.18475651]
[1758523710567,0.87731668,113160.0,113150.0,0.18475651]
[1758523711162,1.05405757,113160.0,113150.0,0.18475651]
[1758523711568,1.62742425,113160.0,113150.0,0.008]
[1758523712194,0.48069089,113160.0,113150.0,0.008]
[1758523712536,0.48069089,113160.0,113150.0,0.18475651]
[1758523712537,1.62738425,113160.0,113150.0,0.18475651]
[1758523712673,1.32858425,113160.0,113150.0,0.18475651]
[1758523712889,1.62738425,113160.0,113150.0,0.18475651]
[1758523714157,1.05401757,113160.0,113150.0,0.18475651]
[1758523714558,1.62738425,113160.0,113150.0,0.18475651]
[1758523714820,1.34080631,113160.0,113150.0,0.18475651]
[1758523714964,1.34072631,113160.0,113150.0,0.18475651]
[1758523716562,1.34072631,113160.0,113150.0,0.25183639]
[1758523718401,1.34072631,113160.0,113150.0,0.07507988]
[1758523718543,1.34072631,113160.0,113150.0,0.25183639]
[1758523719370,1.34072631,113160.0,113150.0,0.07507988]
[1758523719739,1.85607369,113160.0,113150.0,0.008]
[1758523719940,2.19607369,113160.0,113150.0,0.008]
[1758523720060,2.22265195,113160.0,113150.0,0.008]
[1758523720497,3.51288508,113160.0,113150.0,0.008]
[1758523720912,0.17677214,113140.0,113130.0,4e-05]
[1758523721144,1.76560527,113140.0,113130.0,4e-05]
[1758523721351,1.77089527,113140.0,113130.0,4e-05]
[1758523721547,1.77085527,113140.0,113130.0,4e-05]
[1758523722834,1.47229527,113140.0,113130.0,4e-05]
[1758523723142,2.11081527,113140.0,113130.0,4e-05]
[1758523723707,2.11081527,113140.0,113130.0,0.00204]
[1758523724457,2.11081527,113140.0,113130.0,0.00304]
[1758523725159,1.81229527,113140.0,113130.0,0.00304]
[1758523725541,0.52206214,113140.0,113130.0,0.00304]
[1758523725744,0.82054214,113140.0,113130.0,0.17982776]
[1758523725908,2.11077527,113140.0,113130.0,0.17982776]
[1758523726450,2.11077527,113140.0,113130.0,0.00304]
[1758523726966,1.68069756,113140.0,113130.0,0.00304]
[1758523727410,1.38221756,113140.0,113130.0,0.00304]
[1758523727615,1.68065756,113140.0,113130.0,0.00304]
[1758523728753,1.38221756,113140.0,113130.0,0.00304]
[1758523728965,1.68065756,113140.0,113130.0,0.00304]
[1758523729173,2.11073527,113140.0,113130.0,0.00304]
[1758523729941,2.11073527,113140.0,113130.0,0.20765776]
[1758523729942,1.49855542,113140.0,113130.0,0.20765776]
[1758523730152,0.34,113140.0,113130.0,0.20765776]
[1758523730357,0.43007771,113160.0,113150.0,0.17674889]
[1758523730584,0.86020229,113160.0,113150.0,0.20457889]
[1758523730945,1.15856229,113160.0,113150.0,0.20457889]
[1758523731060,0.17675651,113150.0,113130.0,0.26719743]
[1758523731431,1.15851542,113140.0,113130.0,0.2292333]
[1758523731631,1.15851542,113140.0,113130.0,0.20465776]
[1758523733753,1.16058542,113140.0,113130.0,0.20465776]
[1758523733962,1.33735756,113140.0,113130.0,0.18182776]
[1758523734164,1.34057756,113140.0,113130.0,0.00304]
[1758523734425,0.30043,113140.0,113130.0,0.20765776]
[1758523734628,1.16058542,113140.0,113130.0,0.20765776]
[1758523734791,1.16046542,113140.0,113130.0,0.20765776]
[1758523735023,1.33723756,113140.0,113130.0,0.20765776]